bitfinex/quotes_BTCUSD_20260101
["timestamp","ask_amount","ask_price","bid_price","bid_amount"]
[1767292239420,0.17380406,88171.0,88157.0,0.01136]
[1767292239635,0.01134185,88169.0,88157.0,0.01136]
[1767292239983,0.01134211,88167.0,88157.0,0.01136]
[1767292240124,0.01134198,88168.0,88157.0,0.01136]
[1767292240486,0.06805095,88170.0,88157.0,0.01136]
[1767292240628,0.01134172,88170.0,88157.0,0.01136]
[1767292241012,0.01134172,88170.0,88157.0,0.0114023]
[1767292241314,0.17380406,88171.0,88157.0,0.0114023]
[1767292241900,0.45371146,88170.0,88157.0,0.0114023]
[1767292242103,0.44236974,88170.0,88157.0,0.0114023]
[1767292242514,0.45371146,88170.0,88157.0,0.0114023]
[1767292242715,0.44236974,88170.0,88157.0,0.0114023]
[1767292246434,0.17380406,88171.0,88157.0,0.0114023]
[1767292246645,0.16246247,88171.0,88157.0,0.0114023]
[1767292247001,0.44236974,88170.0,88157.0,0.0114023]
[1767292247197,0.01134185,88169.0,88157.0,0.0114023]
[1767292247409,0.01134198,88168.0,88157.0,0.0114023]
[1767292247608,0.01134198,88168.0,88157.0,0.0108533]
[1767292248215,0.61617393,88170.0,88157.0,0.0108533]
[1767292248493,0.01134185,88169.0,88157.0,0.0108533]
[1767292248982,0.01134198,88168.0,88157.0,0.0108533]
[1767292249213,0.01134185,88169.0,88157.0,0.0108533]
[1767292249393,0.61617393,88170.0,88157.0,0.0108533]
[1767292250889,0.01134185,88169.0,88157.0,0.0108533]
[1767292251099,0.61617393,88170.0,88157.0,0.0108533]
[1767292252073,0.60483221,88170.0,88157.0,0.0108533]
[1767292253144,0.01134121,88174.0,88157.0,0.16682058]
[1767292253351,0.02193259,88173.0,88157.0,0.16682058]
[1767292253482,0.01134134,88173.0,88157.0,0.16682058]
[1767292254262,0.01134146,88172.0,88157.0,0.16682058]
[1767292254444,0.16182134,88172.0,88157.0,0.16682058]
[1767292254859,0.1731628,88172.0,88157.0,0.16682058]
[1767292255267,0.01134159,88171.0,88157.0,0.16682058]
[1767292256164,0.1731628,88172.0,88157.0,0.16682058]
[1767292256330,0.03502716,88171.0,88157.0,0.16682058]
[1767292256523,0.1731628,88172.0,88157.0,0.16682058]
[1767292256738,0.04636733,88171.0,88157.0,0.16682058]
[1767292256930,0.01134159,88171.0,88157.0,0.16682058]
[1767292257155,0.44236974,88170.0,88157.0,0.16682058]
[1767292260286,0.16182134,88172.0,88160.0,0.44236974]
[1767292260547,0.03502567,88171.0,88170.0,0.000549]
[1767292260748,0.03502521,88171.0,88170.0,0.000549]
[1767292260950,0.03502521,88171.0,88162.0,0.14964268]
[1767292261161,0.01136,88175.0,88162.0,0.14964268]
[1767292261362,0.03502385,88174.0,88162.0,0.14964268]
[1767292261564,0.03502385,88173.0,88162.0,0.14964268]
[1767292261769,0.03502385,88172.0,88162.0,0.14964268]
[1767292261975,0.01060043,88171.0,88162.0,0.14964268]
[1767292262177,0.01136,88175.0,88162.0,0.14964268]
[1767292262379,0.03501987,88174.0,88162.0,0.14964268]
[1767292262715,0.03501987,88173.0,88162.0,0.14964268]
[1767292262924,0.03501987,88172.0,88162.0,0.14964268]
[1767292263102,0.01059923,88171.0,88162.0,0.14964268]
[1767292263302,0.01136,88175.0,88162.0,0.14964268]
[1767292263483,0.03501683,88174.0,88162.0,0.14964268]
[1767292263654,0.03501683,88173.0,88162.0,0.14964268]
[1767292263859,0.03501683,88172.0,88162.0,0.14964268]
[1767292264068,0.01059832,88171.0,88162.0,0.14964268]
[1767292264295,0.02270108,88175.0,88162.0,0.14964268]
[1767292264450,0.03501665,88174.0,88162.0,0.14964268]
[1767292264655,0.03501665,88173.0,88162.0,0.14964268]
[1767292264861,0.03501665,88172.0,88162.0,0.14964268]
[1767292265061,0.01059826,88171.0,88162.0,0.14964268]
[1767292265293,0.02270108,88175.0,88162.0,0.14964268]
[1767292265489,0.0350165,88174.0,88162.0,0.14964268]
[1767292265695,0.0350165,88173.0,88162.0,0.14964268]
[1767292265911,0.0350165,88172.0,88162.0,0.14964268]
[1767292266113,0.01059822,88171.0,88162.0,0.14964268]
[1767292266456,0.01134121,88174.0,88162.0,0.14964268]
[1767292266651,0.03501611,88173.0,88162.0,0.14964268]
[1767292266828,0.03501611,88172.0,88162.0,0.14964268]
[1767292267146,0.0105981,88171.0,88162.0,0.14964268]
[1767292267330,0.01134121,88174.0,88162.0,0.14964268]
[1767292267468,0.03501595,88173.0,88162.0,0.14964268]
[1767292267673,0.03501595,88172.0,88162.0,0.14964268]
[1767292267872,0.01059805,88171.0,88162.0,0.14964268]
[1767292271582,0.01134146,88172.0,88162.0,0.14964268]
[1767292271766,0.01059776,88171.0,88162.0,0.14964268]
[1767292271983,0.01134146,88172.0,88162.0,0.14964268]
[1767292272350,0.01059776,88171.0,88162.0,0.14964268]
[1767292272496,0.01134146,88172.0,88162.0,0.14964268]
[1767292272704,0.01059774,88171.0,88162.0,0.14964268]
[1767292272926,0.01134134,88173.0,88162.0,0.14964268]
[1767292273154,0.03501488,88172.0,88162.0,0.14964268]
[1767292273333,0.01059774,88171.0,88162.0,0.14964268]
[1767292273495,0.01134134,88173.0,88162.0,0.14964268]
[1767292273714,0.03501486,88172.0,88162.0,0.14964268]
[1767292273915,0.01059773,88171.0,88162.0,0.14964268]
[1767292274140,0.01134134,88173.0,88162.0,0.14964268]
[1767292274312,0.03501485,88172.0,88162.0,0.14964268]
[1767292274530,0.01059773,88171.0,88162.0,0.14964268]
[1767292274732,0.01134134,88173.0,88162.0,0.14964268]
[1767292275091,0.03501485,88172.0,88162.0,0.14964268]
[1767292275247,0.01059773,88171.0,88162.0,0.14964268]
[1767292275450,0.01134134,88173.0,88162.0,0.14964268]
[1767292275693,0.03501485,88172.0,88162.0,0.14964268]
[1767292275859,0.01059773,88171.0,88162.0,0.14964268]
[1767292276079,0.01134146,88172.0,88162.0,0.14964268]
[1767292276283,0.0105977,88171.0,88162.0,0.14964268]
[1767292276486,0.01134146,88172.0,88162.0,0.14964268]
[1767292276658,0.01059684,88171.0,88162.0,0.14964268]
[1767292276865,0.01134146,88172.0,88162.0,0.14964268]
[1767292277203,0.01059684,88171.0,88162.0,0.14964268]
[1767292277413,0.01134134,88173.0,88162.0,0.14964268]
[1767292277611,0.04635308,88172.0,88162.0,0.14964268]
[1767292277838,0.01059676,88171.0,88162.0,0.14964268]
[1767292278011,0.01134134,88173.0,88162.0,0.14964268]
[1767292278211,0.0463531,88172.0,88162.0,0.14964268]
[1767292278437,0.01059676,88171.0,88162.0,0.14964268]
[1767292278724,0.01134134,88173.0,88162.0,0.14964268]
[1767292278929,0.03501167,88172.0,88162.0,0.14964268]
[1767292279103,0.01059677,88171.0,88162.0,0.14964268]
[1767292279268,0.01134134,88173.0,88162.0,0.14964268]
[1767292279515,0.03501173,88172.0,88162.0,0.14964268]
[1767292279711,0.01059679,88171.0,88162.0,0.14964268]
[1767292280041,0.01134134,88173.0,88162.0,0.14964268]
[1767292280225,0.03501192,88172.0,88162.0,0.14964268]
[1767292280436,0.01059684,88171.0,88162.0,0.14964268]
[1767292280665,0.01134134,88173.0,88162.0,0.14964268]
[1767292280816,0.03501214,88172.0,88162.0,0.14964268]
[1767292280973,0.01059691,88171.0,88162.0,0.14964268]
[1767292281178,0.01134121,88174.0,88162.0,0.14964268]
[1767292281499,0.04635355,88173.0,88162.0,0.14964268]
[1767292281700,0.03501221,88172.0,88162.0,0.14964268]
[1767292281909,0.16182134,88182.0,88162.0,0.14964268]
[1767292282107,0.03577548,88180.0,88172.0,0.000549]
[1767292282292,0.02441548,88179.0,88172.0,0.000549]
[1767292282488,0.02441548,88179.0,88162.0,0.14964268]
[1767292282859,0.18602179,88179.0,88162.0,0.14964268]
[1767292283065,0.02441548,88178.0,88162.0,0.16098543]
[1767292283208,0.02441548,88178.0,88162.0,0.14964268]
[1767292283209,0.01134082,88177.0,88162.0,0.14964268]
[1767292283419,0.02440624,88176.0,88162.0,0.14964268]
[1767292283643,0.03574719,88176.0,88162.0,0.14964268]
[1767292283851,0.01134095,88176.0,88162.0,0.14964268]
[1767292284021,0.01134082,88177.0,88162.0,0.14964268]
[1767292284230,0.03574649,88176.0,88162.0,0.14964268]
[1767292284413,0.01134095,88176.0,88162.0,0.14964268]
[1767292284629,0.01134108,88175.0,88162.0,0.14964268]
[1767292285468,0.15737544,88175.0,88160.0,0.15507748]
[1767292296648,0.02270069,88178.0,88160.0,0.15507748]
[1767292296932,0.03499418,88177.0,88160.0,0.16642049]
[1767292297101,0.03499418,88176.0,88160.0,0.16642049]
[1767292297305,0.16873544,88178.0,88160.0,0.16642049]
[1767292297503,0.03499431,88177.0,88160.0,0.16642049]
[1767292297829,0.03499431,88176.0,88160.0,0.16642049]
[1767292298030,0.16873544,88178.0,88160.0,0.16642049]
[1767292298390,0.03499447,88177.0,88160.0,0.15507748]
[1767292298594,0.03499447,88176.0,88160.0,0.15507748]
[1767292298749,0.18007613,88178.0,88160.0,0.15507748]
[1767292298946,0.03499453,88177.0,88160.0,0.15507748]
[1767292299318,0.03499453,88176.0,88160.0,0.15507748]
[1767292299472,0.16871626,88177.0,88160.0,0.15507748]
[1767292299675,0.03499482,88176.0,88160.0,0.15507748]
[1767292299856,0.16871626,88177.0,88160.0,0.15507748]
[1767292300055,0.03499482,88176.0,88160.0,0.15507748]
[1767292300274,0.01134095,88176.0,88160.0,0.15507748]
[1767292300473,0.16871626,88177.0,88160.0,0.15507748]
[1767292300651,0.03499598,88176.0,88160.0,0.15507748]
[1767292300856,0.16871626,88177.0,88160.0,0.15507748]
[1767292301079,0.03499753,88176.0,88160.0,0.15507748]
[1767292301278,0.15737544,88177.0,88160.0,0.15507748]
[1767292301497,0.03500134,88176.0,88160.0,0.15507748]
[1767292301709,0.15737544,88177.0,88160.0,0.15507748]
[1767292301875,0.0350015,88176.0,88160.0,0.15507748]
[1767292302078,0.15737544,88177.0,88160.0,0.16642049]
[1767292302281,0.03500187,88176.0,88160.0,0.16642049]
[1767292302525,0.15737544,88177.0,88160.0,0.16642049]
[1767292302675,0.03500442,88176.0,88160.0,0.16642049]
[1767292303026,0.15737544,88177.0,88160.0,0.16642049]
[1767292303317,0.03500429,88176.0,88160.0,0.16642049]
[1767292303537,0.15737544,88177.0,88160.0,0.15507748]
[1767292303748,0.03500431,88176.0,88160.0,0.15507748]
[1767292303879,0.16871626,88177.0,88160.0,0.15507748]
[1767292304080,0.03500428,88176.0,88160.0,0.15507748]
[1767292304285,0.01134095,88176.0,88160.0,0.15507748]
[1767292309297,0.01059698,88175.0,88160.0,0.15507748]
[1767292309438,0.01134095,88176.0,88160.0,0.15507748]
[1767292309661,0.01059699,88175.0,88160.0,0.15507748]
[1767292309863,0.01134095,88176.0,88160.0,0.15507748]
[1767292310059,0.01059699,88175.0,88160.0,0.15507748]
[1767292310264,0.01134095,88176.0,88160.0,0.15507748]
[1767292310467,0.03501593,88175.0,88160.0,0.15507748]
[1767292310670,0.01134095,88176.0,88160.0,0.15507748]
[1767292310929,0.03501594,88175.0,88160.0,0.15507748]
[1767292311044,0.01134095,88176.0,88160.0,0.15507748]
[1767292311255,0.03501847,88175.0,88160.0,0.15507748]
[1767292311456,0.01134095,88176.0,88160.0,0.15507748]
[1767292311665,0.0350196,88175.0,88160.0,0.15507748]
[1767292311869,0.01134095,88176.0,88160.0,0.15507748]
[1767292312108,0.03501949,88175.0,88160.0,0.15507748]
[1767292312279,0.16871639,88176.0,88160.0,0.15507748]
[1767292312486,0.03502112,88175.0,88160.0,0.15507748]
[1767292312705,0.16871639,88176.0,88160.0,0.15507748]
[1767292312882,0.03502111,88175.0,88160.0,0.15507748]
[1767292313090,0.16871639,88176.0,88160.0,0.15507748]
[1767292313289,0.03502494,88175.0,88160.0,0.15507748]
[1767292313490,0.16871639,88176.0,88160.0,0.15507748]
[1767292313790,0.03502425,88175.0,88160.0,0.15507748]
[1767292313995,0.16871639,88176.0,88160.0,0.15507748]
[1767292314193,0.0350242,88175.0,88160.0,0.15507748]
[1767292314440,0.16871639,88176.0,88160.0,0.15507748]
[1767292314637,0.03502008,88175.0,88160.0,0.15507748]
[1767292314936,0.16871639,88176.0,88160.0,0.15507748]
[1767292315100,0.03501963,88175.0,88160.0,0.15507748]
[1767292315301,0.16371639,88176.0,88160.0,0.15507748]
[1767292315503,0.03501816,88175.0,88160.0,0.15507748]
[1767292315725,0.15737544,88176.0,88160.0,0.15507748]
[1767292315925,0.03501816,88175.0,88160.0,0.15507748]
[1767292316106,0.15737544,88176.0,88160.0,0.15507748]
[1767292316288,0.03501815,88175.0,88160.0,0.15507748]
[1767292316487,0.15737544,88176.0,88160.0,0.15507748]
[1767292316691,0.03501814,88175.0,88160.0,0.15507748]
[1767292316895,0.15737544,88176.0,88160.0,0.15507748]
[1767292317118,0.03501587,88175.0,88160.0,0.15507748]
[1767292317350,0.15737544,88176.0,88160.0,0.15507748]
[1767292317691,0.03501367,88175.0,88160.0,0.15507748]
[1767292317903,0.16871639,88176.0,88160.0,0.15507748]
[1767292318052,0.0350136,88175.0,88160.0,0.15507748]
[1767292318254,0.16871639,88176.0,88160.0,0.59744227]
[1767292318450,0.03501357,88175.0,88160.0,0.59744227]
[1767292318655,0.16871639,88176.0,88160.0,0.59744227]
[1767292318874,0.03501335,88175.0,88160.0,0.59744227]
[1767292319076,0.16871639,88176.0,88160.0,0.59744227]
[1767292319278,0.03501327,88175.0,88160.0,0.59744227]
[1767292319495,0.16871639,88176.0,88160.0,0.59744227]
[1767292319704,0.03501327,88175.0,88160.0,0.59744227]
[1767292319850,0.16871639,88176.0,88160.0,0.59744227]
[1767292320071,0.03501188,88175.0,88160.0,0.59744227]
[1767292320264,0.16871639,88176.0,88160.0,0.59744227]
[1767292320475,0.03501207,88175.0,88160.0,0.59744227]
[1767292320673,0.16871639,88176.0,88160.0,0.59744227]
[1767292320901,0.03500983,88175.0,88160.0,0.59744227]
[1767292321138,0.16871639,88176.0,88160.0,0.59744227]
[1767292321299,0.03500934,88175.0,88160.0,0.59744227]
[1767292321648,0.15737544,88176.0,88160.0,0.59744227]
[1767292321816,0.03500778,88175.0,88160.0,0.59744227]
[1767292322027,0.15737544,88176.0,88160.0,0.59744227]
[1767292322219,0.03500724,88175.0,88160.0,0.59744227]
[1767292322383,0.15737544,88176.0,88160.0,0.59744227]
[1767292322589,0.03500725,88175.0,88160.0,0.59744227]
[1767292322789,0.15737544,88176.0,88160.0,0.59744227]
[1767292323040,0.03500722,88175.0,88160.0,0.60878528]
[1767292323242,0.15737544,88176.0,88160.0,0.59744227]
[1767292323453,0.03500723,88175.0,88160.0,0.59744227]
[1767292323655,0.15737544,88176.0,88160.0,0.59744227]
[1767292323984,0.03500723,88175.0,88160.0,0.59744227]
[1767292324184,0.15737544,88176.0,88160.0,0.59744227]
[1767292324307,0.03500723,88175.0,88160.0,0.59744227]
[1767292324512,0.15737544,88176.0,88160.0,0.59744227]
[1767292324709,0.03500685,88175.0,88160.0,0.59744227]
[1767292324909,0.15737544,88176.0,88160.0,0.59744227]
[1767292325122,0.03500698,88175.0,88160.0,0.59744227]
[1767292325344,0.15737544,88176.0,88160.0,0.15507748]
[1767292325576,0.19423916,88175.0,88160.0,0.15507748]
[1767292325795,0.17057327,88175.0,88160.0,0.15507748]
[1767292326017,0.15923219,88175.0,88160.0,0.15507748]
[1767292327151,0.17057327,88175.0,88160.0,0.15507748]
[1767292328110,0.15923219,88175.0,88160.0,0.15507748]
[1767292331082,0.17057327,88175.0,88160.0,0.15507748]
[1767292332782,0.15923219,88175.0,88160.0,0.15507748]
[1767292334278,0.17057327,88175.0,88160.0,0.15507748]
[1767292334580,0.15923219,88175.0,88160.0,0.15507748]
[1767292339650,0.17057327,88175.0,88160.0,0.15507748]
[1767292339896,0.15923219,88175.0,88160.0,0.15507748]
[1767292342530,0.15923219,88175.0,88160.0,0.59740543]
[1767292344144,0.15923219,88175.0,88160.0,0.15507748]
[1767292344145,0.05670605,88174.0,88160.0,0.15507748]
[1767292344350,0.15923219,88175.0,88160.0,0.15452748]
[1767292344351,0.05670851,88171.0,88160.0,0.15452748]
[1767292344550,0.01134185,88169.0,88160.0,0.15452748]
[1767292344753,0.01134159,88171.0,88160.0,0.15452748]
[1767292346665,0.01134146,88172.0,88160.0,0.15452748]
[1767292347698,0.01134121,88174.0,88160.0,0.15452748]
[1767292347872,0.01134134,88173.0,88160.0,0.15452748]
[1767292348811,0.01134121,88174.0,88160.0,0.15452748]
[1767292349016,0.01134134,88173.0,88160.0,0.59685543]
[1767292349191,0.01134134,88173.0,88160.0,0.15452748]
[1767292349682,0.01134121,88174.0,88160.0,0.15452748]
[1767292350844,0.01134134,88173.0,88160.0,0.15452748]
[1767292353326,0.01134121,88174.0,88160.0,0.15452748]
[1767292355024,0.01134134,88173.0,88160.0,0.15452748]
[1767292357478,0.01134121,88174.0,88160.0,0.15452748]
[1767292357978,0.18193327,88175.0,88160.0,0.15452748]
[1767292358096,0.01059703,88174.0,88160.0,0.15452748]
[1767292358301,0.18193327,88175.0,88160.0,0.15452748]
[1767292358514,0.02193872,88174.0,88160.0,0.15452748]
[1767292358745,0.01134121,88174.0,88160.0,0.15452748]
[1767292360200,0.01134134,88173.0,88160.0,0.1474026]
[1767292360609,0.01134121,88174.0,88160.0,0.1474026]
[1767292362528,0.01134121,88174.0,88160.0,0.1587626]
[1767292363799,0.01134134,88173.0,88160.0,0.1587626]
[1767292363996,0.01134121,88174.0,88160.0,0.1587626]
[1767292366393,0.01134134,88173.0,88160.0,0.1587626]
[1767292366570,0.01134134,88173.0,88160.0,0.1474026]
[1767292366767,0.01134121,88174.0,88160.0,0.1587626]
[1767292367351,0.18193327,88175.0,88160.0,0.1474026]
[1767292367572,0.03502502,88174.0,88160.0,0.1587626]
[1767292367898,0.18193327,88175.0,88160.0,0.1587626]
[1767292368119,0.03502547,88174.0,88160.0,0.1587626]
[1767292368295,0.18193327,88175.0,88160.0,0.1587626]
[1767292368500,0.03502585,88174.0,88160.0,0.1587626]
[1767292368693,0.18193327,88175.0,88160.0,0.1587626]
[1767292368864,0.04636698,88174.0,88160.0,0.1587626]
[1767292369063,0.01134134,88173.0,88160.0,0.1587626]
[1767292369279,0.01134121,88174.0,88160.0,0.1587626]
[1767292369485,0.01134134,88173.0,88160.0,0.1474026]
[1767292369696,0.01134134,88173.0,88160.0,0.1587626]
[1767292369896,0.01134121,88174.0,88160.0,0.1587626]
[1767292370205,0.18193327,88175.0,88160.0,0.1587626]
[1767292370402,0.03502645,88174.0,88160.0,0.1587626]
[1767292370610,0.18193327,88175.0,88160.0,0.1587626]
[1767292370784,0.04636789,88174.0,88160.0,0.1587626]
[1767292371003,0.18193327,88175.0,88160.0,0.1587626]
[1767292371202,0.03502736,88174.0,88160.0,0.1587626]
[1767292371412,0.18193327,88175.0,88160.0,0.1587626]
[1767292371609,0.03502765,88174.0,88160.0,0.1587626]
[1767292371786,0.01134121,88174.0,88160.0,0.1587626]
[1767292371990,0.17059219,88175.0,88160.0,0.1587626]
[1767292372192,0.03502778,88174.0,88160.0,0.1587626]
[1767292372399,0.17059219,88175.0,88160.0,0.60109055]
[1767292372593,0.03502813,88174.0,88160.0,0.60109055]
[1767292372813,0.17059219,88175.0,88160.0,0.60109055]
[1767292372999,0.03502815,88174.0,88160.0,0.60109055]
[1767292373200,0.18193327,88175.0,88160.0,0.60109055]
[1767292373400,0.03502867,88174.0,88160.0,0.60109055]
[1767292373598,0.18193327,88175.0,88160.0,0.60109055]
[1767292373866,0.01134134,88173.0,88160.0,0.60109055]
[1767292374107,0.01134121,88174.0,88160.0,0.60109055]
[1767292374932,0.01136,88175.0,88161.0,0.15208998]
[1767292375221,0.03502937,88174.0,88161.0,0.15208998]
[1767292375459,0.02270108,88175.0,88161.0,0.15208998]
[1767292375669,0.03502954,88174.0,88161.0,0.15208998]
[1767292375875,0.01136,88175.0,88161.0,0.15208998]
[1767292376043,0.03502953,88174.0,88161.0,0.15208998]
[1767292376249,0.02270108,88175.0,88161.0,0.15208998]
[1767292376446,0.03502972,88174.0,88161.0,0.15208998]
[1767292376654,0.01136,88175.0,88161.0,0.15208998]
[1767292376852,0.03502977,88174.0,88161.0,0.15208998]
[1767292377053,0.01136,88175.0,88161.0,0.15208998]
[1767292377369,0.03502983,88174.0,88161.0,0.15208998]
[1767292377574,0.02270108,88175.0,88161.0,0.15208998]
[1767292377755,0.03502993,88174.0,88161.0,0.15208998]
[1767292377933,0.02270108,88175.0,88161.0,0.15208998]
[1767292378277,0.03502993,88174.0,88161.0,0.15208998]
[1767292378478,0.02270108,88175.0,88161.0,0.15208998]
[1767292378772,0.0350302,88174.0,88161.0,0.15208998]
[1767292378974,0.01136,88175.0,88161.0,0.15208998]
[1767292379158,0.03503014,88174.0,88161.0,0.15208998]
[1767292379338,0.01136,88175.0,88161.0,0.15208998]
[1767292379559,0.03503046,88174.0,88161.0,0.15208998]
[1767292379759,0.02270108,88175.0,88161.0,0.15208998]
[1767292380113,0.15965811,88173.0,88161.0,0.01136]
[1767292380334,0.44232795,88171.0,88161.0,0.01136]
[1767292380533,0.15965823,88172.0,88161.0,0.01136]
[1767292381050,0.01134159,88171.0,88161.0,0.01136]
[1767292381215,0.15965823,88172.0,88161.0,0.01136]
[1767292382382,0.14831677,88172.0,88161.0,0.01136]
[1767292383358,0.01134121,88174.0,88157.0,4.23e-05]
[1767292383359,0.14831677,88161.0,88157.0,4.23e-05]
[1767292383560,0.01134249,88164.0,88157.0,4.23e-05]
[1767292383765,0.01134262,88163.0,88157.0,4.23e-05]
[1767292384303,0.01134249,88164.0,88157.0,4.23e-05]
[1767292384931,0.15965913,88165.0,88157.0,4.23e-05]
[1767292385863,0.01134249,88164.0,88157.0,4.23e-05]
[1767292386474,0.15965913,88165.0,88157.0,4.23e-05]
[1767292389171,0.01134249,88164.0,88157.0,4.23e-05]
[1767292389705,0.15965913,88165.0,88157.0,4.23e-05]
[1767292389943,0.01134249,88164.0,88157.0,4.23e-05]
[1767292392161,0.15965913,88165.0,88157.0,4.23e-05]
[1767292395701,0.01136,88166.0,88165.0,0.000549]
[1767292395902,0.01136,88166.0,88157.0,4.23e-05]
[1767292395903,0.01081,88166.0,88157.0,0.15213228]
[1767292396631,0.01136,88166.0,88157.0,0.15213228]
[1767292403332,0.14831677,88172.0,88157.0,0.15213228]
[1767292403535,0.01136,88172.0,88161.0,0.14946717]
[1767292409117,0.01190275,88172.0,88161.0,0.14946717]
[1767292413330,0.01190275,88172.0,88158.0,0.01136]
[1767292413834,0.01190275,88172.0,88158.0,0.16082717]
[1767292418395,0.01059363,88171.0,88158.0,0.16082717]
[1767292418556,0.01190275,88172.0,88158.0,0.16082717]
[1767292418756,0.01059363,88171.0,88158.0,0.16082717]
[1767292418959,0.01190275,88172.0,88158.0,0.16082717]
[1767292419212,0.01059363,88171.0,88158.0,0.16082717]
[1767292419427,0.01190275,88172.0,88158.0,0.16082717]
[1767292419561,0.01059393,88171.0,88158.0,0.16082717]
[1767292419771,0.01190275,88172.0,88158.0,0.16082717]
[1767292419971,0.01059394,88171.0,88158.0,0.16082717]
[1767292420272,0.01190275,88172.0,88158.0,0.16082717]
[1767292420471,0.01059431,88171.0,88158.0,0.16082717]
[1767292420673,0.01190275,88172.0,88158.0,0.16082717]
[1767292420917,0.01059431,88171.0,88158.0,0.16082717]
[1767292421116,0.01190275,88172.0,88158.0,0.16082717]
[1767292421432,0.01059477,88171.0,88158.0,0.17217044]
[1767292421730,0.01190275,88172.0,88158.0,0.16082717]
[1767292421879,0.01059477,88171.0,88158.0,0.16082717]
[1767292422080,0.01190275,88172.0,88158.0,0.16082717]
[1767292422326,0.14550307,88180.0,88164.0,0.01134249]
[1767292422530,0.01136,88177.0,88166.0,0.01134224]
[1767292422703,0.01136,88177.0,88165.0,0.16080953]
[1767292423088,0.01136,88177.0,88166.0,0.16080941]
[1767292423319,0.0033903,88167.0,88166.0,0.16080941]
[1767292423515,0.00895747,88177.0,88167.0,0.01134211]
[1767292424260,0.00895747,88177.0,88166.0,0.01134224]
[1767292424461,0.00895747,88177.0,88166.0,0.16080941]
[1767292424655,0.14550307,88180.0,88169.0,0.01134185]
[1767292424889,0.14550307,88180.0,88167.0,0.06805238]
[1767292425093,0.14550307,88180.0,88168.0,0.01134198]
[1767292425934,0.14550307,88180.0,88167.0,0.01134211]
[1767292426337,0.14550307,88180.0,88168.0,0.01134198]
[1767292428795,0.14550307,88180.0,88166.0,0.14946717]
[1767292433249,0.01136,88179.0,88166.0,0.14946717]
[1767292436725,0.01136,88179.0,88166.0,0.16080941]
[1767292437522,0.01136,88179.0,88168.0,0.14763065]
[1767292439898,0.01136,88178.0,88168.0,0.14763065]
[1767292440295,0.0115067,88181.0,88170.0,0.01134172]
[1767292440701,0.0115067,88181.0,88169.0,0.1589725]
[1767292440906,0.0115067,88181.0,88170.0,0.01134172]
[1767292441032,0.0115067,88181.0,88169.0,0.14531422]
[1767292441684,0.0115067,88181.0,88170.0,0.01134172]
[1767292442149,0.0115067,88181.0,88169.0,0.15665607]
[1767292443502,0.0115067,88181.0,88170.0,0.01134172]
[1767292443835,0.0001467,88181.0,88170.0,0.60135896]
[1767292444790,0.0001467,88181.0,88171.0,0.01134159]
[1767292445837,0.0001467,88181.0,88170.0,0.60135896]
[1767292446213,0.0001467,88181.0,88170.0,0.59001724]
[1767292446474,0.01136,88180.0,88170.0,0.60135896]
[1767292446892,0.01136,88180.0,88170.0,0.59001724]
[1767292447093,0.01136,88180.0,88170.0,0.14763065]
[1767292447356,0.01136,88180.0,88170.0,0.14708165]
[1767292447583,0.16226409,88180.0,88165.0,0.14763065]
[1767292447942,0.16226409,88180.0,88165.0,0.15897301]
[1767292448139,0.16226409,88180.0,88165.0,0.14763065]
[1767292452967,0.01136,88180.0,88165.0,0.14763065]
[1767292453105,0.15090409,88179.0,88165.0,0.14763065]
[1767292456382,0.01136,88178.0,88165.0,0.14763065]
[1767292458099,0.01136,88178.0,88165.0,0.15899065]
[1767292460091,0.15090409,88177.0,88157.0,0.01138569]
[1767292460290,0.00055,88165.0,88158.0,0.01136]
[1767292460503,0.44238659,88170.0,88158.0,0.01136]
[1767292464578,0.44240579,88170.0,88158.0,0.01136]
[1767292472400,0.44240579,88170.0,88158.0,0.15826414]
[1767292477523,0.15090409,88174.0,88158.0,0.15826414]
[1767292477722,0.44240579,88170.0,88158.0,0.15826414]
[1767292486618,0.15090409,88174.0,88160.0,0.44240579]
[1767292490135,0.01060302,88173.0,88160.0,0.44240579]
[1767292490330,0.15090409,88174.0,88160.0,0.44240579]
[1767292490516,0.01060302,88173.0,88160.0,0.44240579]
[1767292490668,0.15090409,88174.0,88160.0,0.44240579]
[1767292490874,0.01060286,88173.0,88160.0,0.44240579]
[1767292491085,0.15090409,88174.0,88160.0,0.44240579]
[1767292491296,0.01060286,88173.0,88160.0,0.44240579]
[1767292491491,0.15090409,88174.0,88160.0,0.44240579]
[1767292491686,0.01060286,88173.0,88160.0,0.44240579]
[1767292491897,0.15090409,88174.0,88160.0,0.44240579]
[1767292492239,0.01060286,88173.0,88160.0,0.44240579]
[1767292492426,0.15090409,88174.0,88160.0,0.44240579]
[1767292492612,0.01060285,88173.0,88160.0,0.44240579]
[1767292492796,0.15090409,88174.0,88160.0,0.44240579]
[1767292492994,0.01060285,88173.0,88160.0,0.44240579]
[1767292493213,0.15090409,88174.0,88160.0,0.44240579]
[1767292493420,0.01060285,88173.0,88160.0,0.44240579]
[1767292493583,0.15090409,88174.0,88160.0,0.44240579]
[1767292493784,0.01060285,88173.0,88160.0,0.44240579]
[1767292494095,0.15090409,88174.0,88160.0,0.44240579]
[1767292494281,0.01060285,88173.0,88160.0,0.44240579]
[1767292494579,0.15090409,88174.0,88160.0,0.44240579]
[1767292494796,0.01060285,88173.0,88160.0,0.44240579]
[1767292494999,0.15090409,88174.0,88160.0,0.44240579]
[1767292495203,0.01060285,88173.0,88160.0,0.44240579]
[1767292495443,0.15090409,88174.0,88160.0,0.44240579]
[1767292495637,0.01060285,88173.0,88160.0,0.44240579]
[1767292495839,0.15090409,88174.0,88160.0,0.44240579]
[1767292500656,0.02270069,88178.0,88160.0,0.44240579]
[1767292500657,0.01136,88178.0,88164.0,0.01134249]
[1767292500886,0.01136,88178.0,88165.0,0.01134236]
[1767292501245,0.19583571,88188.0,88168.0,0.44240579]
[1767292501447,0.0219626,88180.0,88170.0,0.44240579]
[1767292501668,0.01136,88180.0,88170.0,0.44240579]
[1767292507057,0.01133953,88187.0,88170.0,0.44240579]
[1767292507256,0.01136,88182.0,88171.0,0.14008292]
[1767292508937,0.01136,88182.0,88166.0,0.14008292]
[1767292509279,0.44240579,88180.0,88166.0,0.14008292]
[1767292514833,0.01136,88182.0,88166.0,0.15142516]
[1767292515229,0.01136,88182.0,88171.0,0.01134159]
[1767292515454,0.01136,88180.0,88172.0,0.01134146]
[1767292515651,0.01136,88180.0,88171.0,0.00868137]
[1767292516687,0.01136,88180.0,88172.0,0.01134146]
[1767292516986,0.0001467,88189.0,88172.0,0.01134146]
[1767292516987,0.0001467,88189.0,88180.0,0.000549]
[1767292517187,0.01136,88188.0,88179.0,0.44202828]
[1767292518212,0.0001467,88189.0,88179.0,0.44202828]
[1767292518397,0.01136,88188.0,88180.0,0.15142336]
[1767292518544,0.01136,88188.0,88181.0,0.01134031]
[1767292518755,0.01136,88188.0,88180.0,0.15142336]
[1767292519183,0.01136,88188.0,88180.0,0.14008292]
[1767292519591,0.01136,88188.0,88180.0,0.15142336]
[1767292520474,0.0001467,88189.0,88180.0,0.15142336]
[1767292520846,0.0001467,88189.0,88182.0,0.14008292]
[1767292521052,7e-07,88189.0,88183.0,0.01134005]